fUSD/lending_fUSD_20260610
["ID","MTS","AMOUNT","RATE_DAILY","PERIOD"]
[424706116,1781064650000,-151.0,0.00034899,7]
[424706113,1781064650000,-964.36669258,0.00034899,7]
[424706114,1781064650000,-151.0,0.00034899,7]
[424706117,1781064650000,-151.0,0.00034899,7]
[424706115,1781064650000,-500.0,0.00034899,7]
[424706093,1781064650000,-151.0,0.00034899,7]
[424706104,1781064650000,-152.0,0.00034899,7]
[424706090,1781064650000,-271.32271981,0.00034899,7]
[424706062,1781064650000,-151.0,0.00034899,7]
[424706088,1781064650000,-864.78058953,0.00034899,7]
[424706119,1781064650000,-151.0,0.00034899,7]
[424706064,1781064650000,-188.41146231,0.00034899,7]
[424706071,1781064650000,-260.4103811,0.00034899,7]
[424706067,1781064650000,-804.17102365,0.00034899,7]
[424706068,1781064650000,-151.0,0.00034899,7]
[424706063,1781064650000,-251.11897888,0.00034899,7]
[424706070,1781064650000,-151.0,0.00034899,7]
[424706065,1781064650000,-151.0,0.00034899,7]
[424706066,1781064650000,-500.0,0.00034899,7]
[424706072,1781064650000,-151.0,0.00034899,7]
[424706073,1781064650000,-151.0,0.00034899,7]
[424706076,1781064650000,-500.0,0.00034899,7]
[424706074,1781064650000,-151.0,0.00034899,7]
[424706075,1781064650000,-151.0,0.00034899,7]
[424706077,1781064650000,-833.92535152,0.00034899,7]
[424706079,1781064650000,-151.0,0.00034899,7]
[424706084,1781064650000,-151.0,0.00034899,7]
[424706080,1781064650000,-745.65223615,0.00034899,7]
[424706083,1781064650000,-151.0,0.00034899,7]
[424706082,1781064650000,-151.0,0.00034899,7]
[424706078,1781064650000,-270.0455652,0.00034899,7]
[424706081,1781064650000,-152.0,0.00034899,7]
[424706086,1781064650000,-500.0,0.00034899,7]
[424706097,1781064650000,-151.0,0.00034899,7]
[424706096,1781064650000,-151.0,0.00034899,7]
[424706085,1781064650000,-151.0,0.00034899,7]
[424706087,1781064650000,-280.03725111,0.00034899,7]
[424706089,1781064650000,-151.0,0.00034899,7]
[424706120,1781064650000,-209.40437684,0.00034899,7]
[424706069,1781064650000,-719.04747942,0.00034899,7]
[424706125,1781064650000,-151.0,0.00034899,7]
[424706151,1781064650000,-250.12665989,0.00034899,7]
[424706152,1781064650000,-151.0,0.00034899,7]
[424706156,1781064650000,-260.4103811,0.00034899,7]
[424706157,1781064650000,-270.0455652,0.00034899,7]
[424706161,1781064650000,-1763.28,0.000349,14]
[424706170,1781064650000,-775.9283879,0.000349,2]
[424706169,1781064650000,-775.9283879,0.000349,2]
[424706160,1781064650000,-731.73666635,0.000349,2]
[424706162,1781064650000,-152.0,0.000349,7]
[424706163,1781064650000,-152.0,0.000349,7]
[424706166,1781064650000,-152.0,0.000349,7]
[424706164,1781064650000,-152.0,0.000349,7]
[424706165,1781064650000,-152.0,0.000349,7]
[424706168,1781064650000,-1500.0,0.000349,7]
[424706167,1781064650000,-240.0,0.000349,7]
[424706171,1781064650000,-4068.52780645,0.000349,2]
[424706182,1781064650000,-200.0,0.00034908,2]
[424706175,1781064650000,-500.0,0.00034908,60]
[424706176,1781064650000,-500.0,0.00034908,60]
[424706172,1781064650000,-155.16755486,0.000349,7]
[424706174,1781064650000,-2286.0,0.00034908,2]
[424706180,1781064650000,-200.0,0.00034908,2]
[424706181,1781064650000,-2194.8756,0.00034908,2]
[424706177,1781064650000,-1003.78155081,0.00034908,2]
[424706178,1781064650000,-200.0,0.00034908,2]
[424706179,1781064650000,-151.39009832,0.00034908,2]
[424706121,1781064650000,-152.0,0.00034899,7]
[424706153,1781064650000,-152.0,0.00034899,7]
[424706155,1781064650000,-152.0,0.00034899,7]
[424706173,1781064650000,-2256.0,0.00034908,2]
[424706159,1781064650000,-413.62587612,0.00034899,7]
[424706154,1781064650000,-251.11897888,0.00034899,7]
[424706123,1781064650000,-500.0,0.00034899,7]
[424706128,1781064650000,-152.0,0.00034899,7]
[424706131,1781064650000,-151.0,0.00034899,7]
[424706133,1781064650000,-151.0,0.00034899,7]
[424706126,1781064650000,-151.0,0.00034899,7]
[424706127,1781064650000,-151.0,0.00034899,7]
[424706134,1781064650000,-151.0,0.00034899,7]
[424706124,1781064650000,-151.0,0.00034899,7]
[424706129,1781064650000,-217.15233878,0.00034899,7]
[424706132,1781064650000,-151.0,0.00034899,7]
[424706146,1781064650000,-273.35166149,0.00034899,7]
[424706136,1781064650000,-225.18697532,0.00034899,7]
[424706138,1781064650000,-151.0,0.00034899,7]
[424706130,1781064650000,-500.0,0.00034899,7]
[424706140,1781064650000,-151.0,0.00034899,7]
[424706158,1781064650000,-280.03725111,0.00034899,7]
[424706142,1781064650000,-152.0,0.00034899,7]
[424706147,1781064650000,-151.0,0.00034899,7]
[424706148,1781064650000,-151.0,0.00034899,7]
[424706150,1781064650000,-242.15909246,0.00034899,7]
[424706143,1781064650000,-500.0,0.00034899,7]
[424706145,1781064650000,-151.0,0.00034899,7]
[424706149,1781064650000,-152.0,0.00034899,7]
[424706139,1781064650000,-151.0,0.00034899,7]
[424706144,1781064650000,-233.5188934,0.00034899,7]
[424706141,1781064650000,-151.0,0.00034899,7]
[424706135,1781064650000,-152.0,0.00034899,7]
[424706137,1781064650000,-500.0,0.00034899,7]
[424706210,1781064651000,-500.0,0.00034932,2]
[424706204,1781064651000,-500.0,0.00034932,2]
[424706206,1781064651000,-500.0,0.00034932,2]
[424706209,1781064651000,-500.0,0.00034932,2]
[424706211,1781064651000,-500.0,0.00034932,2]
[424706207,1781064651000,-500.0,0.00034932,2]
[424706205,1781064651000,-500.0,0.00034932,2]
[424706208,1781064651000,-500.0,0.00034932,2]
[424706213,1781064651000,-500.0,0.00034932,2]
[424706223,1781064651000,-500.0,0.00034932,2]
[424706220,1781064651000,-500.0,0.00034932,2]
[424706217,1781064651000,-500.0,0.00034932,2]
[424706219,1781064651000,-500.0,0.00034932,2]
[424706214,1781064651000,-500.0,0.00034932,2]
[424706203,1781064651000,-500.0,0.00034932,2]
[424706216,1781064651000,-500.0,0.00034932,2]
[424706212,1781064651000,-500.0,0.00034932,2]
[424706202,1781064651000,-500.0,0.00034932,2]
[424706188,1781064651000,-500.0,0.00034932,2]
[424706199,1781064651000,-500.0,0.00034932,2]
[424706218,1781064651000,-500.0,0.00034932,2]
[424706183,1781064651000,-416.0857,0.00034908,2]
[424706191,1781064651000,-500.0,0.00034932,2]
[424706184,1781064651000,-2000.0,0.00034908,60]
[424706185,1781064651000,-2000.0,0.00034908,60]
[424706186,1781064651000,-7385.811,0.00034908,2]
[424706187,1781064651000,-200.0,0.00034908,2]
[424706189,1781064651000,-500.0,0.00034932,2]
[424706190,1781064651000,-500.0,0.00034932,2]
[424706192,1781064651000,-500.0,0.00034932,2]
[424706197,1781064651000,-500.0,0.00034932,2]
[424706198,1781064651000,-500.0,0.00034932,2]
[424706195,1781064651000,-500.0,0.00034932,2]
[424706194,1781064651000,-500.0,0.00034932,2]
[424706193,1781064651000,-500.0,0.00034932,2]
[424706200,1781064651000,-500.0,0.00034932,2]
[424706196,1781064651000,-500.0,0.00034932,2]
[424706201,1781064651000,-500.0,0.00034932,2]
[424706222,1781064651000,-500.0,0.00034932,2]
[424706215,1781064651000,-500.0,0.00034932,2]
[424706253,1781064651000,-500.0,0.00034932,2]
[424706248,1781064651000,-500.0,0.00034932,2]
[424706241,1781064651000,-500.0,0.00034932,2]
[424706242,1781064651000,-500.0,0.00034932,2]
[424706246,1781064651000,-500.0,0.00034932,2]
[424706260,1781064651000,-500.0,0.00034932,2]
[424706261,1781064651000,-500.0,0.00034932,2]
[424706249,1781064651000,-500.0,0.00034932,2]
[424706251,1781064651000,-500.0,0.00034932,2]
[424706256,1781064651000,-500.0,0.00034932,2]
[424706259,1781064651000,-500.0,0.00034932,2]
[424706258,1781064651000,-500.0,0.00034932,2]
[424706252,1781064651000,-500.0,0.00034932,2]
[424706257,1781064651000,-500.0,0.00034932,2]
[424706254,1781064651000,-500.0,0.00034932,2]
[424706255,1781064651000,-500.0,0.00034932,2]
[424706262,1781064651000,-500.0,0.00034932,2]
[424706224,1781064651000,-500.0,0.00034932,2]
[424706240,1781064651000,-500.0,0.00034932,2]
[424706247,1781064651000,-500.0,0.00034932,2]
[424706250,1781064651000,-500.0,0.00034932,2]
[424706239,1781064651000,-500.0,0.00034932,2]
[424706221,1781064651000,-500.0,0.00034932,2]
[424706225,1781064651000,-500.0,0.00034932,2]
[424706236,1781064651000,-500.0,0.00034932,2]
[424706244,1781064651000,-500.0,0.00034932,2]
[424706237,1781064651000,-500.0,0.00034932,2]
[424706233,1781064651000,-500.0,0.00034932,2]
[424706231,1781064651000,-500.0,0.00034932,2]
[424706227,1781064651000,-500.0,0.00034932,2]
[424706235,1781064651000,-500.0,0.00034932,2]
[424706226,1781064651000,-500.0,0.00034932,2]
[424706232,1781064651000,-500.0,0.00034932,2]
[424706234,1781064651000,-500.0,0.00034932,2]
[424706229,1781064651000,-500.0,0.00034932,2]
[424706245,1781064651000,-500.0,0.00034932,2]
[424706228,1781064651000,-500.0,0.00034932,2]
[424706238,1781064651000,-500.0,0.00034932,2]
[424706243,1781064651000,-500.0,0.00034932,2]
[424706230,1781064651000,-500.0,0.00034932,2]
[424706307,1781064652000,-500.0,0.00034999,2]
[424706304,1781064652000,-500.0,0.00034999,2]
[424706305,1781064652000,-500.0,0.00034999,2]
[424706301,1781064652000,-500.0,0.00034999,2]
[424706312,1781064652000,-500.0,0.00034999,2]
[424706299,1781064652000,-500.0,0.00034999,2]
[424706302,1781064652000,-500.0,0.00034999,2]
[424706296,1781064652000,-500.0,0.00034999,2]
[424706298,1781064652000,-500.0,0.00034999,2]
[424706292,1781064652000,-500.0,0.00034999,2]
[424706309,1781064652000,-500.0,0.00034999,2]
[424706300,1781064652000,-500.0,0.00034999,2]
[424706303,1781064652000,-500.0,0.00034999,2]
[424706308,1781064652000,-500.0,0.00034999,2]
[424706325,1781064652000,-500.0,0.00034999,2]
[424706306,1781064652000,-500.0,0.00034999,2]
[424706310,1781064652000,-500.0,0.00034999,2]
[424706314,1781064652000,-500.0,0.00034999,2]
[424706313,1781064652000,-500.0,0.00034999,2]
[424706319,1781064652000,-500.0,0.00034999,2]
[424706315,1781064652000,-500.0,0.00034999,2]
[424706317,1781064652000,-500.0,0.00034999,2]
[424706321,1781064652000,-500.0,0.00034999,2]
[424706318,1781064652000,-500.0,0.00034999,2]
[424706323,1781064652000,-500.0,0.00034999,2]
[424706316,1781064652000,-500.0,0.00034999,2]
[424706320,1781064652000,-500.0,0.00034999,2]
[424706322,1781064652000,-500.0,0.00034999,2]
[424706293,1781064652000,-500.0,0.00034999,2]
[424706311,1781064652000,-500.0,0.00034999,2]
[424706295,1781064652000,-500.0,0.00034999,2]
[424706274,1781064652000,-766.0,0.00034932,2]
[424706297,1781064652000,-500.0,0.00034999,2]
[424706263,1781064652000,-500.0,0.00034932,2]
[424706265,1781064652000,-500.0,0.00034932,2]
[424706266,1781064652000,-500.0,0.00034932,2]
[424706267,1781064652000,-500.0,0.00034932,2]
[424706271,1781064652000,-500.0,0.00034932,2]
[424706269,1781064652000,-500.0,0.00034932,2]
[424706270,1781064652000,-500.0,0.00034932,2]
[424706272,1781064652000,-500.0,0.00034932,2]
[424706268,1781064652000,-500.0,0.00034932,2]
[424706264,1781064652000,-500.0,0.00034932,2]
[424706273,1781064652000,-500.0,0.00034932,2]
[424706275,1781064652000,-256.001198,0.00034947,30]
[424706276,1781064652000,-500.0,0.00034947,30]
[424706294,1781064652000,-500.0,0.00034999,2]
[424706286,1781064652000,-500.0,0.00034999,30]
[424706280,1781064652000,-2560.0,0.00034978,120]
[424706279,1781064652000,-2600.0,0.00034978,120]
[424706284,1781064652000,-500.0,0.00034998,2]
[424706278,1781064652000,-2600.0,0.00034978,120]
[424706285,1781064652000,-256.001198,0.00034999,30]
[424706277,1781064652000,-968.438356,0.00034978,120]
[424706281,1781064652000,-256.001198,0.00034986,30]
[424706283,1781064652000,-989.84,0.00034988,120]
[424706282,1781064652000,-500.0,0.00034986,30]
[424706288,1781064652000,-150.0,0.00034999,14]
[424706289,1781064652000,-383.05,0.00034999,14]
[424706291,1781064652000,-500.0,0.00034999,2]
[424706290,1781064652000,-500.0,0.00034999,2]
[424706287,1781064652000,-100000.0,0.00034999,7]
[424706337,1781064652000,-500.0,0.00034999,2]
[424706377,1781064652000,-150.0,0.00035,120]
[424706326,1781064652000,-500.0,0.00034999,2]
[424706357,1781064652000,-500.0,0.00034999,2]
[424706359,1781064652000,-500.0,0.00034999,2]
[424706361,1781064652000,-500.0,0.00034999,2]
[424706362,1781064652000,-500.0,0.00034999,2]
[424706358,1781064652000,-500.0,0.00034999,2]
[424706367,1781064652000,-500.0,0.00034999,2]
[424706378,1781064652000,-506.0,0.00035,120]
[424706368,1781064652000,-500.0,0.00034999,2]
[424706369,1781064652000,-500.0,0.00034999,2]
[424706370,1781064652000,-500.0,0.00034999,2]
[424706366,1781064652000,-500.0,0.00034999,2]
[424706372,1781064652000,-500.0,0.00034999,2]
[424706371,1781064652000,-500.0,0.00034999,2]
[424706373,1781064652000,-500.0,0.00034999,2]
[424706375,1781064652000,-500.0,0.00034999,2]
[424706376,1781064652000,-500.0,0.00034999,2]
[424706374,1781064652000,-500.0,0.00034999,2]
[424706380,1781064652000,-769.90605365,0.00035,30]
[424706390,1781064652000,-22348.93,0.00035,7]
[424706382,1781064652000,-2571.3466417,0.00035,2]
[424706379,1781064652000,-380.24670417,0.00035,30]
[424706381,1781064652000,-296531.20967204,0.00035,4]
[424706383,1781064652000,-267.75544237,0.00035,120]
[424706384,1781064652000,-2799.9241267,0.00035,10]
[424706385,1781064652000,-526.0,0.00035,5]
[424706386,1781064652000,-150.0,0.00035,60]
[424706335,1781064652000,-500.0,0.00034999,2]
[424706389,1781064652000,-785.05808097,0.00035,120]
[424706387,1781064652000,-6558.81448376,0.00035,2]
[424706360,1781064652000,-500.0,0.00034999,2]
[424706356,1781064652000,-500.0,0.00034999,2]
[424706388,1781064652000,-1593.56982859,0.00035,7]
[424706365,1781064652000,-500.0,0.00034999,2]
[424706354,1781064652000,-500.0,0.00034999,2]
[424706327,1781064652000,-500.0,0.00034999,2]
[424706324,1781064652000,-500.0,0.00034999,2]
[424706333,1781064652000,-500.0,0.00034999,2]
[424706332,1781064652000,-500.0,0.00034999,2]
[424706330,1781064652000,-500.0,0.00034999,2]
[424706331,1781064652000,-500.0,0.00034999,2]
[424706329,1781064652000,-500.0,0.00034999,2]
[424706334,1781064652000,-500.0,0.00034999,2]
[424706338,1781064652000,-500.0,0.00034999,2]
[424706340,1781064652000,-500.0,0.00034999,2]
[424706341,1781064652000,-500.0,0.00034999,2]
[424706339,1781064652000,-500.0,0.00034999,2]
[424706342,1781064652000,-500.0,0.00034999,2]
[424706328,1781064652000,-500.0,0.00034999,2]
[424706350,1781064652000,-500.0,0.00034999,2]
[424706355,1781064652000,-500.0,0.00034999,2]
[424706343,1781064652000,-500.0,0.00034999,2]
[424706364,1781064652000,-500.0,0.00034999,2]
[424706353,1781064652000,-500.0,0.00034999,2]
[424706352,1781064652000,-500.0,0.00034999,2]
[424706348,1781064652000,-500.0,0.00034999,2]
[424706363,1781064652000,-500.0,0.00034999,2]
[424706344,1781064652000,-500.0,0.00034999,2]
[424706347,1781064652000,-500.0,0.00034999,2]
[424706345,1781064652000,-500.0,0.00034999,2]
[424706346,1781064652000,-500.0,0.00034999,2]
[424706351,1781064652000,-500.0,0.00034999,2]
[424706336,1781064652000,-500.0,0.00034999,2]
[424706349,1781064652000,-500.0,0.00034999,2]
[424706406,1781064653000,-50000.0,0.00035,120]
[424706405,1781064653000,-156631.73021032,0.00035,7]
[424706407,1781064653000,-250.0,0.00035,5]
[424706409,1781064653000,-500.0,0.00035,5]
[424706408,1781064653000,-250.0,0.00035,5]
[424706410,1781064653000,-250.0,0.00035,5]
[424706417,1781064653000,-2018.01328851,0.00035,120]
[424706402,1781064653000,-23701.31800058,0.00035,7]
[424706418,1781064653000,-1000.0,0.00035,2]
[424706416,1781064653000,-667.3532118,0.00035,7]
[424706400,1781064653000,-87297.0,0.00035,120]
[424706403,1781064653000,-23701.31800058,0.00035,7]
[424706397,1781064653000,-271.81925796,0.00035,120]
[424706398,1781064653000,-4000.0,0.00035,30]
[424706404,1781064653000,-156631.73021032,0.00035,7]
[424706396,1781064653000,-1219.51181894,0.00035,4]
[424706394,1781064653000,-144336.91663527,0.00035,7]
[424706401,1781064653000,-44466.17,0.00035,15]
[424706395,1781064653000,-144336.91663527,0.00035,7]
[424706393,1781064653000,-145225.22578479,0.00035,7]
[424706392,1781064653000,-145225.22578479,0.00035,7]
[424706391,1781064653000,-150.0,0.00035,4]
[424706411,1781064653000,-250.0,0.00035,5]
[424706399,1781064653000,-2500.0,0.00035,36]
[424706419,1781064653000,-500.0,0.00035,120]
[424706421,1781064653000,-174.29170218,0.00035,7]
[424706414,1781064653000,-10456.2798652,0.00035,120]
[424706442,1781064653000,-184870.75314667,0.00035,2]
[424706441,1781064653000,-814.06941199,0.00035,2]
[424706439,1781064653000,-246.04,0.00035,2]
[424706437,1781064653000,-1450.29274445,0.00035,120]
[424706436,1781064653000,-1450.29274445,0.00035,120]
[424706438,1781064653000,-1450.29274445,0.00035,120]
[424706435,1781064653000,-1450.29274445,0.00035,120]
[424706440,1781064653000,-277.39,0.00035,30]
[424706415,1781064653000,-667.3532118,0.00035,7]
[424706434,1781064653000,-1450.29274445,0.00035,120]
[424706429,1781064653000,-164.70006234,0.00035,14]
[424706430,1781064653000,-164.70006233,0.00035,14]
[424706433,1781064653000,-1450.29274445,0.00035,120]
[424706424,1781064653000,-164.70006234,0.00035,14]
[424706413,1781064653000,-285.27386404,0.00035,5]
[424706431,1781064653000,-164.70006233,0.00035,14]
[424706420,1781064653000,-150.0,0.00035,7]
[424706422,1781064653000,-501.48541274,0.00035,30]
[424706426,1781064653000,-164.70006234,0.00035,14]
[424706412,1781064653000,-250.0,0.00035,5]
[424706428,1781064653000,-164.70006234,0.00035,14]
[424706427,1781064653000,-164.70006234,0.00035,14]
[424706432,1781064653000,-1450.29274445,0.00035,120]
[424706425,1781064653000,-164.70006234,0.00035,14]
[424706423,1781064653000,-600.0,0.00035,120]
[424706444,1781064654000,-500.0,0.00012897,2]
[424706443,1781064654000,-500.0,0.00012897,2]
[424706448,1781064654000,-500.0,0.00012897,2]
[424706445,1781064654000,-531.88838659,0.00012897,2]
[424706454,1781064654000,-185564.97098669,0.00035,2]
[424706447,1781064654000,-616.17493396,0.00012897,2]
[424706450,1781064654000,-171.8095258,0.00012897,2]
[424706446,1781064654000,-500.0,0.00012897,2]
[424706451,1781064654000,-945.0118339,0.00015266,2]
[424706456,1781064654000,-295.64471499,0.00035,2]
[424706458,1781064654000,-529.80780789,0.00035,2]
[424706457,1781064654000,-665.0,0.00035,2]
[424706449,1781064654000,-209.98383288,0.00012897,2]
[424706452,1781064654000,-1823.0,0.00029208,30]
[424706453,1781064654000,-1823.0,0.00030208,30]
[424706455,1781064654000,-1167.74398626,0.00035,2]
[424706459,1781064655000,-1007.71969,0.00024,7]
[424706460,1781064657000,500.0,0.0003013,120]
[424706461,1781064657000,-945.0118339,0.0001772,2]
[424706462,1781064657000,-419.0,0.00018807,2]
[424706463,1781064657000,-1030.0,0.00019651,2]
[424706465,1781064657000,-151.0,0.00019651,2]
[424706466,1781064657000,-806.71495979,0.00019651,2]
[424706467,1781064657000,-300.91511021,0.00019651,2]
[424706469,1781064657000,-1148.61238259,0.00019651,2]
[424706471,1781064657000,-151.0,0.00019651,2]
[424706470,1781064657000,-1191.11104074,0.00019651,2]
[424706472,1781064657000,-686.02257247,0.00019651,2]
[424706464,1781064657000,-1068.11,0.00019651,2]
[424706468,1781064657000,-151.0,0.00019651,2]
[424706473,1781064662000,500.0,0.0003013,120]
[424706474,1781064680000,500.0,0.0003013,120]
[424706475,1781064692000,500.0,0.0003013,120]
[424706476,1781064733000,338.15,0.0003013,120]
[424706477,1781064745000,300.0,0.0003013,120]
[424706478,1781064796000,2000.0,0.00028368,120]
[424706482,1781065252000,10000.0,0.00029452,120]
[424706485,1781065437000,-1152.14327403,8e-05,2]
[424706499,1781065438000,-1267.7971,0.00012798,2]
[424706497,1781065438000,-676.32,0.00012387,2]
[424706495,1781065438000,-263.83845042,0.00012098,2]
[424706496,1781065438000,-963.28,0.00012132,2]
[424706494,1781065438000,-208.56751131,0.00012098,2]
[424706493,1781065438000,-214.34113876,0.00012097,2]
[424706491,1781065438000,-150.0,0.00011705,2]
[424706490,1781065438000,-150.0,0.00011354,2]
[424706489,1781065438000,-250.0,0.0001021,2]
[424706488,1781065438000,-150.0,9.677e-05,2]
[424706486,1781065438000,-205.0,8.079e-05,2]
[424706487,1781065438000,-250.0,8.8e-05,2]
[424706498,1781065438000,-500.0,0.00012798,2]
[424706492,1781065438000,-170.98004386,0.00012097,2]
[424706501,1781065438000,-3071.1028,0.00012798,2]
[424706509,1781065438000,-500.0,0.00012897,2]
[424706500,1781065438000,-2500.0,0.00012798,2]
[424706516,1781065438000,-2000.0,0.00012898,2]
[424706502,1781065438000,-731.73666635,0.00012798,2]
[424706517,1781065438000,-1407821.66759553,0.00012898,2]
[424706515,1781065438000,-206.917,0.00012897,2]
[424706513,1781065438000,-150.0,0.00012897,2]
[424706510,1781065438000,-500.0,0.00012897,2]
[424706511,1781065438000,-500.0,0.00012897,2]
[424706514,1781065438000,-2947.246,0.00012897,2]
[424706507,1781065438000,-500.0,0.00012897,2]
[424706508,1781065438000,-500.0,0.00012897,2]
[424706505,1781065438000,-268.60122826,0.00012834,2]
[424706506,1781065438000,-260.05437342,0.00012888,2]
[424706504,1781065438000,-310.76462003,0.00012822,2]
[424706503,1781065438000,-159.64219803,0.00012816,2]
[424706512,1781065438000,-500.0,0.00012897,2]
[424706528,1781065832000,-150.0,0.00012502,2]
[424706523,1781065832000,-250.0,0.000105,2]
[424706530,1781065832000,-4105.1250852,0.00012734,2]
[424706527,1781065832000,-106.02860646,0.00011843,2]
[424706525,1781065832000,-360.74414422,0.00011843,2]
[424706526,1781065832000,-446.39634787,0.00011843,2]
[424706521,1781065832000,-385.02289978,9.262e-05,2]
[424706522,1781065832000,-114.97710022,9.262e-05,2]
[424706519,1781065832000,-106.81429101,9.262e-05,2]
[424706520,1781065832000,-143.18570899,9.262e-05,2]
[424706518,1781065832000,-294.95970493,8.42e-05,2]
[424706524,1781065832000,-500.0,0.000105,2]
[424706529,1781065832000,-151.0,0.0001258,2]
[424706531,1781065832000,-830.38,0.00012739,2]
[424706535,1781065832000,-150.0,0.00012797,2]
[424706544,1781065832000,-424.63898139,0.00012798,2]
[424706548,1781065832000,-1246.48,0.00012798,2]
[424706542,1781065832000,-20689.62256147,0.00012798,2]
[424706543,1781065832000,-4706.55963668,0.00012798,2]
[424706539,1781065832000,-2714.31966893,0.00012798,2]
[424706540,1781065832000,-2000.0,0.00012798,2]
[424706541,1781065832000,-2000.0,0.00012798,2]
[424706538,1781065832000,-703.14928871,0.00012798,2]
[424706536,1781065832000,-153.40542187,0.00012798,2]
[424706537,1781065832000,-966.16174053,0.00012798,2]
[424706532,1781065832000,-2000.0,0.00012739,2]
[424706533,1781065832000,-150.0,0.0001274,2]
[424706534,1781065832000,-465.93075238,0.00012788,2]
[424706551,1781065838000,-1472932.69882046,0.00012798,2]
[424706552,1781065838000,-186.47678224,0.00012798,2]
[424706554,1781065838000,-215.92376884,0.00012946,2]
[424706553,1781065838000,-166.66,0.00012834,2]
[424706557,1781065838000,-166.66,0.00013104,2]
[424706556,1781065838000,-4105.12508515,0.00012975,2]
[424706558,1781065838000,-158.59,0.00013112,2]
[424706555,1781065838000,-160.0,0.00012949,2]
[424706601,1781065839000,-10807.36198924,0.000149,2]
[424706591,1781065839000,-1096.557995,0.00014651,2]
[424706599,1781065839000,-661.50828373,0.00014898,2]
[424706598,1781065839000,-2500.0,0.00014889,2]
[424706592,1781065839000,-5482.788375,0.00014651,2]
[424706593,1781065839000,-4105.12508515,0.00014659,2]
[424706595,1781065839000,-2368.50890741,0.000148,2]
[424706594,1781065839000,-350.0,0.000148,2]
[424706596,1781065839000,-311.21557548,0.00014844,2]
[424706600,1781065839000,-661.50828373,0.00014899,2]
[424706603,1781065839000,-571.31722776,0.000149,2]
[424706609,1781065839000,-465.93075238,0.0001499,2]
[424706602,1781065839000,-661.50828373,0.000149,2]
[424706606,1781065839000,-291.61486188,0.00014908,2]
[424706605,1781065839000,-7854.8816815,0.000149,2]
[424706611,1781065839000,-2704.7365885,0.00014999,2]
[424706612,1781065839000,-338.17143394,0.00014999,2]
[424706610,1781065839000,-465.93075238,0.0001499,2]
[424706608,1781065839000,-117918.73704676,0.00014989,2]
[424706607,1781065839000,-500.0,0.00014988,2]
[424706587,1781065839000,-2000.0,0.00014332,2]
[424706614,1781065839000,-379.29247825,0.00014999,2]
[424706615,1781065839000,-500.0,0.00014999,2]
[424706604,1781065839000,-753.1048271,0.000149,2]
[424706586,1781065839000,-1555.5,0.00014326,2]
[424706578,1781065839000,-2000.0,0.00013955,2]
[424706582,1781065839000,-158.59,0.00014194,2]
[424706564,1781065839000,-4105.12508515,0.00013697,2]
[424706561,1781065839000,-311.21557548,0.0001343,2]
[424706559,1781065839000,-4105.12508515,0.00013215,2]
[424706562,1781065839000,-4105.12508515,0.00013456,2]
[424706563,1781065839000,-166.66,0.00013645,2]
[424706560,1781065839000,-166.66,0.00013375,2]